bitfinex-derivatives/quotes_SOLF0:USTF0_20250227
["timestamp","ask_amount","ask_price","bid_price","bid_amount"]
[1740631026284,7.2954,137.22,137.16,3.7806]
[1740631026782,7.2954,137.22,137.17,7.2977]
[1740631026982,0.04809564,137.2,137.18,0.04918992]
[1740631028482,7.297,137.19,137.18,0.04918992]
[1740631028675,0.04809564,137.2,137.18,0.04918992]
[1740631029080,0.04809564,137.2,137.09,12.12]
[1740631029280,12.06,137.24,137.09,12.12]
[1740631029582,7.2959,137.22,137.16,7.2982]
[1740631030181,7.2959,137.22,137.17,7.298]
[1740631030385,0.04852784,137.2,137.18,0.04721509]
[1740631031588,195.8647,137.27,137.18,0.04721509]
[1740631031787,3.8647,137.27,137.09,12.12]
[1740631031983,3.8647,137.27,137.09,207.12]
[1740631032486,7.2947,137.24,137.19,7.297]
[1740631032889,0.04957083,137.23,137.19,7.297]
[1740631033082,0.04957083,137.23,137.2,0.04811292]
[1740631038387,192.4077,137.31,137.2,0.04811292]
[1740631038589,4.1756,137.31,137.16,3.8209]
[1740631038782,3.7679,137.31,137.16,3.8209]
[1740631039583,0.05193878,137.25,137.22,0.04832152]
[1740631039780,3.7679,137.31,137.16,3.8209]
[1740631040381,97.91584213,137.34,137.16,3.8209]
[1740631040584,97.91584213,137.34,137.17,1.34015519]
[1740631040988,7.2896,137.33,137.16,3.8209]
[1740631041292,0.04733327,137.27,137.24,0.05229633]
[1740631041493,7.2896,137.33,137.27,7.2926]
[1740631042588,0.05067913,137.31,137.29,0.04746833]
[1740631043292,7.34147913,137.31,137.29,0.04746833]
[1740631046298,0.05067913,137.31,137.29,0.04746833]
[1740631046786,0.05067913,137.31,137.29,7.33906833]
[1740631047598,0.05067913,137.31,137.29,0.04746833]
[1740631049397,0.05067913,137.31,137.29,7.33906833]
[1740631050099,0.05067913,137.31,137.29,0.04746833]
[1740631051502,7.2911,137.3,137.29,0.04746833]
[1740631051700,7.2911,137.3,137.19,198.26]
[1740631052002,97.91584213,137.34,137.28,7.2921]
[1740631052803,0.05501576,137.32,137.3,0.04933411]
[1740631053004,7.34541576,137.32,137.3,0.04933411]
[1740631053800,7.2906,137.31,137.3,0.04933411]
[1740631054002,0.05501576,137.32,137.19,198.26]
[1740631054197,1.9003,137.33,137.24,7.2943]
[1740631054704,1.9003,137.33,137.25,7.2937]
[1740631054905,7.2914,137.3,137.25,7.2937]
[1740631055103,1.9003,137.33,137.2,2.0185]
[1740631055296,0.05425273,137.29,137.26,7.3400925]
[1740631055698,0.05425273,137.29,137.26,0.0469925]
[1740631057707,7.34615273,137.29,137.26,0.0469925]
[1740631059407,7.2923,137.28,137.26,0.0469925]
[1740631059703,7.2927,137.27,137.26,0.0469925]
[1740631059912,0.05425273,137.29,137.21,1.9707]
[1740631060098,2.0019,137.28,137.17,1.8662]
[1740631060302,7.2952,137.23,137.19,7.2968]
[1740631060808,7.2945,137.24,137.19,7.2968]
[1740631061206,0.04898674,137.23,137.2,0.04661849]
[1740631062007,0.04898674,137.23,137.21,7.2956]
[1740631062212,0.04898674,137.23,137.2,0.04661849]
[1740631062515,11.98,137.3,137.2,0.04661849]
[1740631062701,2.0019,137.33,137.17,1.8662]
[1740631063512,0.05150685,137.26,137.24,0.05122856]
[1740631063911,7.2906,137.32,137.22,4.0184]
[1740631064107,0.04713765,137.26,137.24,0.05280337]
[1740631064311,7.2906,137.31,137.24,0.05280337]
[1740631064609,0.05112185,137.26,137.22,4.0184]
[1740631064813,2.0019,137.33,137.26,0.05406972]
[1740631064814,7.2921,137.29,137.26,0.05406972]
[1740631065016,7.2921,137.29,137.24,7.2943]
[1740631065315,7.34408544,137.29,137.26,0.05095219]
[1740631065510,0.05198544,137.29,137.26,0.05095219]
[1740631066816,7.34368544,137.29,137.26,0.05095219]
[1740631067111,0.05198544,137.29,137.26,0.05095219]
[1740631068316,0.05198544,137.29,137.26,7.34385219]
[1740631068508,0.05198544,137.29,137.26,0.05095219]
[1740631068714,0.05198544,137.29,137.26,7.34395219]
[1740631071616,0.05198544,137.29,137.26,0.05095219]
[1740631072523,0.05198544,137.29,137.26,7.34405219]
[1740631073016,0.05198544,137.29,137.28,7.2922]
[1740631073216,7.2892,137.34,137.26,0.05095219]
[1740631073416,3.8892,137.37,137.26,0.05095219]
[1740631073721,3.8892,137.37,137.22,5.9996]
[1740631073924,3.8892,137.37,137.21,11.92]
[1740631074513,0.05414342,137.3,137.28,0.05256085]
[1740631074816,7.2896,137.33,137.21,11.92]
[1740631075020,7.2896,137.33,137.28,7.33771285]
[1740631075422,0.05265667,137.32,137.28,7.33771285]
[1740631076321,0.05265667,137.32,137.28,0.04591285]
[1740631077118,3.8892,137.37,137.28,0.04591285]
[1740631077419,3.8892,137.37,137.33,7.289]
[1740631078211,0.05132409,137.36,137.34,0.05552807]
[1740631081123,0.05132409,137.36,137.34,7.34442807]
[1740631083025,0.05132409,137.36,137.35,7.2885]
[1740631084428,0.05132409,137.36,137.34,0.05552807]
[1740631084727,7.2894,137.34,137.29,7.2913]
[1740631085126,2.0305,137.35,137.25,1.8615]
[1740631085627,7.2899,137.33,137.25,1.8615]
[1740631085829,0.0549691,137.31,137.29,0.05543273]
[1740631086424,0.0549691,137.31,137.29,7.34713273]
[1740631086926,0.0549691,137.31,137.24,110.10370664]
[1740631087426,7.2926,137.28,137.24,110.10370664]
[1740631087622,1.8569,137.3,137.24,110.10370664]
[1740631087819,7.2921,137.29,137.24,117.39800664]
[1740631088021,0.05199171,137.28,137.26,0.05006866]
[1740631089526,1.9464,137.36,137.26,0.05006866]
[1740631089728,3.8454,137.36,137.24,113.90780664]
[1740631089930,11.1334,137.36,137.3,7.2909]
[1740631090428,11.1334,137.36,137.24,3.8041]
[1740631090628,0.04847816,137.34,137.32,0.05484897]
[1740631090822,0.04847816,137.34,137.31,7.2905]
[1740631091022,0.04847816,137.34,137.32,0.04624431]
[1740631091223,7.2885,137.35,137.24,3.8041]
[1740631091426,3.8454,137.36,137.32,0.05390324]
[1740631091729,3.8454,137.36,137.24,3.8041]
[1740631091925,1.9815,137.35,137.26,7.2932]
[1740631092126,1.9815,137.35,137.24,3.8041]
[1740631092327,7.291,137.31,137.24,3.8041]
[1740631092719,0.04948656,137.29,137.26,0.05590985]
[1740631094027,1.9815,137.35,137.26,0.05590985]
[1740631094222,1.9815,137.35,137.24,3.8041]
[1740631094622,9.27,137.35,137.3,7.2907]
[1740631094829,1.9815,137.35,137.3,7.2907]
[1740631095327,0.05468419,137.34,137.31,0.05309833]
[1740631095630,9.2703,137.35,137.29,7.2915]
[1740631095930,0.05051114,137.34,137.31,0.05551997]
[1740631096720,0.05051114,137.34,137.31,7.34561997]
[1740631096922,0.05051114,137.34,137.31,0.05551997]
[1740631097328,0.05051114,137.34,137.33,7.2895]
[1740631099435,0.05051114,137.34,137.31,0.05551997]
[1740631099628,0.05051114,137.34,137.33,7.2895]
[1740631099828,1.9982,137.4,137.31,0.05551997]
[1740631100133,1.8591,137.41,137.35,7.2881]
[1740631100331,1.8591,137.41,137.3,3.8738]
[1740631101030,0.0468303,137.37,137.34,0.05300748]
[1740631101227,7.2883,137.36,137.34,0.05300748]
[1740631101429,0.0468303,137.37,137.34,0.05300748]
[1740631102422,7.3347303,137.37,137.34,0.05300748]
[1740631102830,0.0468303,137.37,137.34,0.05300748]
[1740631104522,7.3344303,137.37,137.34,0.05300748]
[1740631104925,0.0468303,137.37,137.34,0.05300748]
[1740631105328,7.288,137.36,137.34,0.05300748]
[1740631105924,0.0468303,137.37,137.34,0.05300748]
[1740631106127,7.3344303,137.37,137.34,0.05300748]
[1740631107035,0.0468303,137.37,137.34,0.05300748]
[1740631107536,7.3344303,137.37,137.34,0.05300748]
[1740631108838,0.0468303,137.37,137.34,7.34150748]
[1740631109233,0.0468303,137.37,137.34,0.05300748]
[1740631109635,0.0468303,137.37,137.34,7.34180748]
[1740631110441,0.0468303,137.37,137.35,7.2884]
[1740631110733,0.0468303,137.37,137.34,0.05300748]
[1740631112837,7.3342303,137.37,137.34,0.05300748]
[1740631113734,0.0468303,137.37,137.34,0.05300748]
[1740631114339,0.0468303,137.37,137.36,7.288]
[1740631115446,9.2958,137.43,137.39,7.2864]
[1740631115639,7.2843,137.43,137.39,7.2864]
[1740631116649,7.33715421,137.42,137.4,0.04976098]
[1740631118146,7.2853,137.41,137.4,0.04976098]
[1740631119544,7.2866,137.39,137.28,41.91002847]
[1740631119743,3.769,137.45,137.28,30.09002847]
[1740631120144,7.2872,137.38,137.34,7.289]
[1740631120646,0.05563612,137.37,137.35,0.04847371]
[1740631121043,7.2894,137.34,137.29,7.2916]
[1740631121747,7.2894,137.34,137.3,7.291]
[1740631122247,7.2894,137.34,137.31,0.05456138]
[1740631122248,0.04758668,137.33,137.31,0.05456138]
[1740631126048,0.04758668,137.33,137.31,7.34506138]
[1740631129552,0.04758668,137.33,137.31,0.05456138]
[1740631131146,0.04758668,137.33,137.31,7.34476138]
[1740631132252,0.04758668,137.33,137.31,0.05456138]
[1740631132459,7.2901,137.32,137.31,0.05456138]
[1740631134351,7.2914,137.3,137.26,7.293]
[1740631134754,1.9542,137.37,137.22,32.08072847]
[1740631135054,1.9542,137.37,137.25,7.2935]
[1740631135259,1.9542,137.37,137.22,32.08072847]
[1740631135450,1.29301905,137.36,137.22,32.08072847]
[1740631135652,0.05500403,137.31,137.28,0.05278357]
[1740631136350,7.2911,137.3,137.28,0.05278357]
[1740631136556,1.8629,137.3,137.28,0.05278357]
[1740631137454,7.2917,137.29,137.28,0.05278357]
[1740631137956,1.8629,137.3,137.22,1.9907]
[1740631137957,7.2933,137.26,137.22,7.2952]
[1740631138356,1.8629,137.3,137.22,7.2952]
[1740631138658,7.2929,137.27,137.22,7.2952]
[1740631139059,7.34662933,137.26,137.23,0.05435103]
[1740631140863,0.05332933,137.26,137.23,0.05435103]
[1740631141655,7.2943,137.24,137.23,0.05435103]
[1740631141861,0.05332933,137.26,137.15,0.96195114]
[1740631141862,1.9607,137.25,137.15,0.96195114]
[1740631142159,1.9669,137.23,137.15,0.96195114]
[1740631142561,7.2957,137.22,137.15,0.96195114]
[1740631142963,0.05520834,137.2,137.17,0.0556046]
[1740631144263,0.05520834,137.2,137.18,7.2975]
[1740631146159,0.05520834,137.2,137.17,0.0556046]
[1740631146357,0.05520834,137.2,137.19,7.297]
[1740631149563,0.05520834,137.2,137.17,0.0556046]
[1740631149957,0.05520834,137.2,137.09,1.9799]
[1740631150157,0.05520834,137.2,137.12,7.3005]
[1740631150362,1.9669,137.23,137.12,7.3005]
[1740631151162,7.298,137.18,137.16,0.04758135]
[1740631151366,0.05426013,137.19,137.16,0.04758135]
[1740631151867,7.298,137.17,137.16,0.04758135]
[1740631161364,0.05426013,137.19,137.16,0.04758135]
[1740631162070,7.294,137.25,137.16,0.04758135]
[1740631162268,1.9434,137.27,137.16,0.04758135]
[1740631162468,7.2968,137.2,137.13,3.9068]
[1740631162667,1.9434,137.27,137.13,3.9068]
[1740631163064,1.9434,137.27,137.16,7.2982]
[1740631163264,0.049564,137.21,137.19,0.04692765]
[1740631163669,7.2959,137.22,137.19,0.04692765]
[1740631163871,0.05528079,137.21,137.19,0.04692765]
[1740631165072,1.9434,137.27,137.22,7.2952]
[1740631165378,1.9467,137.28,137.13,3.9068]
[1740631165673,7.2934,137.26,137.21,7.2957]
[1740631165872,1.9467,137.28,137.13,3.9068]
[1740631166073,7.2953,137.23,137.13,15.5868]
[1740631166375,0.04809786,137.22,137.19,0.05250887]
[1740631167965,7.2959,137.21,137.19,0.05250887]
[1740631168165,0.04809786,137.22,137.19,0.05250887]
[1740631168567,7.2965,137.2,137.19,0.05250887]
[1740631168970,4.0182,137.21,137.11,0.96261333]
[1740631169173,7.2998,137.14,137.11,0.96261333]
[1740631170272,7.35262562,137.14,137.11,1.00897913]
[1740631171177,0.05282562,137.14,137.11,1.00897913]
[1740631171374,0.05282562,137.14,137.11,0.0463658]
[1740631173477,0.05282562,137.14,137.11,7.3470658]
[1740631173677,0.05282562,137.14,137.11,0.0463658]
[1740631174871,0.05282562,137.14,137.12,7.3003]
[1740631175078,11.3142,137.21,137.11,0.0463658]
[1740631175280,99.87315253,137.23,137.07,1.9171]
[1740631175476,99.87315253,137.23,137.08,1.34096225]
[1740631175477,97.98345253,137.23,137.08,1.34096225]
[1740631175873,105.27845253,137.23,137.08,1.34096225]
[1740631176077,97.98345253,137.23,137.08,8.95348207]
[1740631176281,0.04675576,137.17,137.14,0.0547018]
[1740631176581,97.98345253,137.23,137.13,11.66]
[1740631176874,7.2959,137.22,137.14,1.9641]
[1740631177379,97.98345253,137.23,137.08,11.66]
[1740631177579,0.0519365,137.19,137.16,0.04839745]
[1740631179279,97.98345253,137.23,137.16,0.04839745]
[1740631179674,105.27835253,137.23,137.18,7.2971]
[1740631179869,105.27835253,137.23,137.08,11.66]
[1740631179870,97.98345253,137.23,137.08,11.66]
[1740631180074,97.98345253,137.23,137.09,1.34076744]
[1740631180478,0.04818705,137.17,137.16,7.2986]
[1740631180677,97.98345253,137.23,137.08,22.4996818]
[1740631180874,97.98345253,137.23,137.16,7.2984]
[1740631181777,0.04906366,137.21,137.18,0.04992743]
[1740631181984,9.3173,137.25,137.17,7.2976]
[1740631182183,0.05533379,137.21,137.18,0.0501172]
[1740631182383,0.05533379,137.21,137.18,7.3475172]
[1740631183784,0.05533379,137.21,137.18,0.0501172]
[1740631185981,0.05533379,137.21,137.18,1.9229172]
[1740631186381,0.05533379,137.21,137.18,9.2203172]
[1740631186886,0.05533379,137.21,137.18,1.9229172]
[1740631188484,0.05533379,137.21,137.19,7.2969]
[1740631191187,0.05533379,137.21,137.2,7.2965]
[1740631194091,0.05533379,137.21,137.18,1.9229172]
[1740631196087,5.8652,137.3,137.19,2.0469]
[1740631197192,0.04721572,137.26,137.23,0.05523201]
[1740631202806,0.04721572,137.26,137.23,7.34973201]
[1740631202991,0.04721572,137.26,137.23,0.05523201]
[1740631203599,0.04721572,137.26,137.24,7.294]
[1740631204295,0.04721572,137.26,137.23,7.34983201]
[1740631204897,0.04721572,137.26,137.23,0.05523201]
[1740631205197,0.04721572,137.26,137.24,7.2942]
[1740631207905,0.04721572,137.26,137.23,7.34993201]
[1740631208300,0.04721572,137.26,137.23,0.05523201]
[1740631210499,0.04721572,137.26,137.24,7.2939]
[1740631210901,0.04721572,137.26,137.23,0.05523201]
[1740631212604,0.04721572,137.26,137.25,7.2938]
[1740631213400,36.71946799,137.23,137.22,11.6]
[1740631213602,1.572e-05,137.26,137.22,11.6]
[1740631213806,1.572e-05,137.26,137.23,2.024]
[1740631214105,1.572e-05,137.26,137.24,7.2943]
[1740631214305,1.572e-05,137.26,137.23,2.024]
[1740631214705,1.572e-05,137.26,137.23,2.07122235]
[1740631214897,1.572e-05,137.26,137.25,7.2938]
[1740631218909,1.572e-05,137.26,137.24,7.2942]
[1740631219908,1.572e-05,137.26,137.23,2.07122235]
[1740631220210,1.572e-05,137.26,137.23,0.04722235]
[1740631223614,7.29331572,137.26,137.23,0.04722235]
[1740631223815,1.572e-05,137.26,137.23,0.04722235]
[1740631224311,7.294,137.25,137.23,0.04722235]
[1740631224910,1.572e-05,137.26,137.23,0.04722235]
[1740631227418,1.572e-05,137.26,137.23,7.34202235]
[1740631227813,7.29331572,137.26,137.23,0.04722235]
[1740631229508,1.572e-05,137.26,137.23,0.04722235]
[1740631236321,1.572e-05,137.26,137.25,7.2938]
[1740631239823,6.0884,137.37,137.25,1.33931783]
[1740631240425,6.0884,137.37,137.34,7.2887]
[1740631241116,6.13607105,137.37,137.34,7.34162452]
[1740631243022,6.13607105,137.37,137.34,0.05292452]
[1740631244118,6.13607105,137.37,137.25,63.57412182]
[1740631244320,13.3762,137.37,137.25,63.57412182]
[1740631245318,0.04857924,137.32,137.3,0.05568037]
[1740631245514,13.3762,137.37,137.31,7.2903]
[1740631245717,0.04906383,137.32,137.31,7.2903]
[1740631245920,13.3762,137.37,137.31,7.2903]
[1740631246121,0.04653686,137.33,137.31,7.2903]
[1740631246321,0.04653686,137.33,137.32,7.2901]
[1740631248614,0.04653686,137.33,137.32,4.2022]
[1740631256431,0.04653686,137.33,137.31,7.2904]
[1740631257736,0.04653686,137.33,137.3,0.05568037]
[1740631257938,0.04653686,137.33,137.3,7.34668037]
[1740631259638,0.04653686,137.33,137.3,0.05568037]
[1740631259939,0.04653686,137.33,137.25,63.57412182]
[1740631260237,0.04653686,137.33,137.26,7.2931]
[1740631260936,0.04653686,137.33,137.25,7.2936]
[1740631261141,0.04653686,137.33,137.28,0.05080377]
[1740631261335,0.04653686,137.33,137.22,30.09002847]
[1740631261636,7.2915,137.3,137.24,7.2942]
[1740631261836,1.943,137.29,137.24,7.2942]
[1740631262042,7.2928,137.27,137.22,30.09002847]
[1740631262547,0.04982001,137.26,137.23,0.05234446]
[1740631262736,0.04982001,137.26,137.22,30.09002847]
[1740631262942,7.34312001,137.26,137.19,7.2968]
[1740631263542,0.04982001,137.26,137.18,7.2973]
[1740631263739,1.943,137.29,137.18,7.2973]
[1740631263740,7.2938,137.25,137.18,7.2973]
[1740631263945,7.2938,137.25,137.21,0.0536051]
[1740631264147,7.2955,137.22,137.16,30.09002847]
[1740631264748,9.2426,137.21,137.16,30.09002847]
[1740631264948,1.9465,137.21,137.16,30.09002847]
[1740631265148,1.9549,137.2,137.16,27.00102847]
[1740631265344,7.2976,137.18,137.16,20.86894661]
[1740631266042,7.2971,137.19,137.1,7.3014]
[1740631266549,0.04999655,137.16,137.13,0.05012329]
[1740631267245,0.04999655,137.16,137.13,7.35022329]
[1740631267550,0.04999655,137.16,137.13,0.05012329]
[1740631268247,192.0,137.29,137.14,11.6]
[1740631268447,1.8982,137.28,137.15,3.9326]
[1740631268648,1.8982,137.28,137.17,7.2976]
[1740631269153,1.8982,137.28,137.15,3.9326]
[1740631269353,0.05063948,137.24,137.21,0.05285218]
[1740631271554,0.05063948,137.24,137.15,3.9326]
[1740631271750,192.0,137.27,137.15,3.9326]
[1740631272453,7.2939,137.25,137.15,3.9326]
[1740631272651,192.0,137.27,137.15,3.9326]
[1740631272851,0.05165522,137.21,137.19,0.05493539]
[1740631273056,192.0,137.27,137.19,0.05493539]
[1740631273257,0.05255333,137.21,137.19,0.05493539]
[1740631273451,7.2933,137.26,137.19,0.05493539]
[1740631273651,0.04718292,137.21,137.19,0.05493539]
[1740631273854,7.2933,137.26,137.19,0.05493539]
[1740631274055,0.04602842,137.21,137.19,0.05493539]
[1740631274254,7.2933,137.26,137.19,0.05493539]
[1740631274759,0.05532332,137.24,137.19,0.05493539]
[1740631275760,7.34992332,137.24,137.15,7.299]
[1740631276053,3.8516,137.23,137.15,7.299]
[1740631276452,3.8516,137.23,137.12,11.6]
[1740631277052,0.05339303,137.19,137.16,0.05488324]
[1740631277551,0.05339303,137.19,137.18,7.2975]
[1740631280656,0.05339303,137.19,137.16,0.05488324]
[1740631281055,0.05339303,137.19,137.16,7.35298324]
[1740631281855,0.05339303,137.19,137.16,0.05488324]
[1740631287562,0.05339303,137.19,137.17,7.298]
[1740631287758,0.05339303,137.19,137.16,0.05488324]
[1740631287959,0.05339303,137.19,137.16,7.35328324]
[1740631290361,0.05339303,137.19,137.17,7.2979]
[1740631291364,0.05339303,137.19,137.16,0.05488324]
[1740631292266,7.35069303,137.19,137.16,0.05488324]
[1740631293466,0.05339303,137.19,137.16,0.05488324]
[1740631294865,0.05339303,137.19,137.16,7.35318324]
[1740631295362,0.05339303,137.19,137.08,121.93108417]
[1740631295556,7.2959,137.21,137.08,121.93108417]
[1740631296361,7.2959,137.21,137.15,7.2988]
[1740631296560,7.2956,137.22,137.15,7.2988]
[1740631296761,0.05120807,137.19,137.17,0.04952775]
[1740631297761,0.05120807,137.19,137.18,7.2975]
[1740631297967,0.05120807,137.19,137.17,0.04952775]
[1740631299769,0.05120807,137.19,137.18,7.2975]
[1740631300163,0.05120807,137.19,137.17,7.34742775]
[1740631302665,0.05120807,137.19,137.18,7.2975]
[1740631302873,192.0,137.27,137.17,0.04952775]
[1740631303072,6.0138,137.3,137.15,11.6]
[1740631303875,7.2941,137.25,137.19,7.2969]
[1740631304071,0.05306236,137.24,137.21,0.05399378]
[1740631304472,7.34746236,137.24,137.21,0.05399378]
[1740631309779,0.05306236,137.24,137.21,0.05399378]
[1740631312079,0.05306236,137.24,137.21,7.34989378]
[1740631313681,7.34766236,137.24,137.21,7.34989378]
[1740631315178,7.34766236,137.24,137.21,0.05399378]
[1740631317884,7.2951,137.23,137.21,0.05399378]
[1740631322282,0.05306236,137.24,137.12,41.29462414]
[1740631322489,7.2973,137.19,137.15,7.2986]
[1740631322988,1.9583,137.22,137.12,30.3723493]
[1740631323590,0.05416979,137.18,137.16,0.04828179]
[1740631323989,0.05416979,137.18,137.17,7.2977]
[1740631324585,6.979e-05,137.18,137.17,7.2977]
[1740631325292,6.979e-05,137.18,137.17,11.0671]
[1740631328087,6.979e-05,137.18,137.17,7.2977]
[1740631329592,6.979e-05,137.18,137.16,0.04828179]
[1740631329788,6.979e-05,137.18,137.16,7.34688179]
[1740631329993,6.979e-05,137.18,137.16,0.04828179]
[1740631330497,6.979e-05,137.18,137.17,7.298]
[1740631332700,6.979e-05,137.18,137.16,0.04828179]
[1740631332900,6.979e-05,137.18,137.16,7.34668179]
[1740631335900,6.979e-05,137.18,137.16,0.04828179]
[1740631336100,6.979e-05,137.18,137.17,7.298]
[1740631339503,6.979e-05,137.18,137.16,0.04828179]
[1740631340409,6.979e-05,137.18,137.16,7.34678179]
[1740631340905,6.979e-05,137.18,137.17,7.298]
[1740631343711,6.979e-05,137.18,137.16,0.04828179]
[1740631345709,7.29766979,137.18,137.16,0.04828179]
[1740631348408,7.298,137.17,137.16,0.04828179]
[1740631349609,7.2992,137.15,137.12,7.3005]
[1740631349814,7.2992,137.15,137.09,63.64544823]
[1740631350214,7.2992,137.15,137.11,7.3009]
[1740631350906,0.04782315,137.14,137.12,0.05049545]
[1740631351710,2.09452315,137.14,137.12,0.05049545]
[1740631352415,7.3002,137.13,137.12,0.05049545]
[1740631353217,7.3002,137.13,137.09,7.302]
[1740631353615,2.09452315,137.14,137.07,30.3723493]
[1740631354519,2.09452315,137.14,137.03,540.00317015]
[1740631354520,2.09452315,137.14,137.02,30.3723493]
[1740631354819,7.3034,137.07,137.03,7.3053]
[1740631355305,7.303,137.08,137.04,7.305]
[1740631355707,0.05308388,137.07,137.04,7.305]
[1740631357819,0.05308388,137.07,137.05,7.3044]
[1740631358714,0.05308388,137.07,137.06,7.3039]
[1740631359416,11.6,137.17,136.99,5.9053]
[1740631359621,2.0034,137.16,137.0,1.34168242]
[1740631359816,2.0034,137.16,137.0,111.7380946]
[1740631360016,2.0034,137.16,137.01,1.34168242]
[1740631360222,11.6,137.17,137.01,1.34168242]
[1740631360425,7.2993,137.15,137.1,7.3015]
[1740631360722,13.6034,137.17,137.1,7.3015]
[1740631360924,0.05348955,137.13,137.11,0.05017715]
[1740631362017,0.05348955,137.13,137.0,110.39641218]
[1740631362217,192.0,137.16,137.0,110.39641218]
[1740631362422,9.3465,137.14,137.07,7.3034]
[1740631362624,2.0467,137.14,137.07,7.3034]
[1740631363023,0.04792552,137.12,137.07,7.3034]
[1740631363228,0.04792552,137.12,137.06,7.3037]
[1740631363429,2.0467,137.14,136.99,5.9053]
[1740631363622,0.04631378,137.1,137.0,1.34169742]
[1740631363823,9.3468,137.14,137.06,7.3035]
[1740631364025,0.05197936,137.06,136.99,116.30749773]
[1740631364326,3.369e-05,137.04,137.0,1.34172624]
[1740631364526,1.8866,137.13,137.0,1.34172624]
[1740631364730,1.8866,137.13,136.99,116.30749773]
[1740631365431,7.3028,137.09,136.99,116.30749773]
[1740631365619,0.04941987,137.07,137.05,0.05533002]
[1740631365824,192.0,137.12,137.05,0.05533002]
[1740631366020,0.04625946,137.07,137.05,0.05533002]
[1740631366328,0.04972361,137.07,137.05,0.05533002]
[1740631370335,0.04972361,137.07,137.05,7.35943002]
[1740631370835,0.04972361,137.07,137.05,0.05533002]
[1740631372438,0.04972361,137.07,137.05,7.35973002]
[1740631373239,0.04972361,137.07,137.06,7.3039]
[1740631375139,1.8866,137.13,137.05,0.05533002]
[1740631375343,2.0517,137.16,137.05,0.05533002]
[1740631375539,2.0517,137.16,137.05,3.8807]
[1740631375939,7.3,137.14,137.05,3.8807]
[1740631376340,0.05107468,137.11,137.08,0.04843841]
[1740631376645,0.05107468,137.11,137.1,7.3018]
[1740631378744,193.9368,137.18,137.13,7.3001]
[1740631378943,1.9368,137.18,137.13,7.3001]
[1740631379145,9.2348,137.18,137.13,7.3001]
[1740631379641,7.2981,137.17,137.13,7.3001]
[1740631379946,7.34442961,137.17,137.14,0.05451604]
[1740631380542,0.04632961,137.17,137.14,0.05451604]
[1740631385047,0.04632961,137.17,137.16,7.2986]
[1740631386448,9.1647,137.23,137.14,0.05451604]
[1740631386750,2.0493,137.26,137.19,7.2969]
[1740631387743,0.05455535,137.24,137.21,0.04880543]
[1740631387947,3.9286,137.27,137.13,199.78040135]
[1740631388147,0.05138257,137.24,137.21,0.04882846]
[1740631388344,0.05138257,137.24,137.21,7.34452846]
[1740631389546,0.05138257,137.24,137.21,0.04882846]
[1740631391446,7.34578257,137.24,137.21,0.04882846]
[1740631392449,7.2954,137.22,137.21,0.04882846]
[1740631394451,7.295,137.23,137.21,0.04882846]
[1740631395250,7.2954,137.22,137.21,0.04882846]
[1740631397952,0.05138257,137.24,137.21,0.04882846]
[1740631398757,0.05138257,137.24,137.23,7.2949]
[1740631400445,192.0,137.28,137.21,0.04882846]
[1740631400650,192.0,137.28,137.25,7.2937]
[1740631401248,3.8614,137.33,137.2,3.813]
[1740631401654,0.05505297,137.28,137.25,0.05174582]
[1740631404658,0.05505297,137.28,137.26,7.2932]
[1740631405365,1.9176,137.35,137.25,0.05174582]
[1740631405662,1.9384,137.38,137.26,11.6]
[1740631405867,1.9384,137.38,137.27,2.0482]
[1740631406071,1.9384,137.38,137.27,3.9243]
[1740631406368,7.2856,137.41,137.35,7.2881]
[1740631406867,0.05333377,137.39,137.34,7.2888]
[1740631407172,7.2859,137.4,137.37,0.05488682]
[1740631407364,0.04826285,137.38,137.37,0.05488682]
[1740631407766,7.33516285,137.38,137.37,0.05488682]
[1740631407967,7.33516285,137.38,137.32,7.2899]
[1740631408364,7.33516285,137.38,137.27,3.9243]
[1740631408569,7.2869,137.38,137.33,7.2895]
[1740631409069,0.05550337,137.37,137.34,0.04807496]
[1740631409264,7.2884,137.36,137.27,3.9243]
[1740631409467,0.05277435,137.37,137.34,0.05374735]
[1740631409663,1.9384,137.42,137.27,3.9243]
[1740631409858,0.05061852,137.37,137.34,0.04722796]
[1740631411266,0.05061852,137.37,137.35,7.2885]
[1740631412570,0.05061852,137.37,137.36,7.288]
[1740631413873,4.0042,137.44,137.34,0.04722796]
[1740631414177,11.288,137.44,137.39,7.2862]
[1740631415178,0.05228149,137.43,137.42,7.2848]